[Event "Silver Lake Open-A 2018"]
[Site "Veliko Gradiste"]
[Date "2018.06.19"]
[Round "4"]
[White "Eric, Jovana"]
[Black "Alok, Sinha"]
[Result "1-0"]
[ECO "B76"]
[WhiteElo "2324"]
[BlackElo "2047"]
[Annotator "NA"]
[PlyCount "43"]
[EventDate "2018.06.17"]
[EventType "swiss"]
[EventCountry "SRB"]
[SourceTitle "playchess.com"]
[Source "ChessBase"]
[SourceQuality "1"]
[TimeControl "40/5400+30:900+30"]

1. e4 {[%emt 0:00:00]} c5 {[%emt 0:00:07]} 2. Nf3 {[%emt 0:00:00]} d6 {[%emt 0:00:05]} 3. d4 {[%emt 0:00:00]} cxd4 {[%emt 0:00:07]} 4. Nxd4 {[%emt 0:00:00]} Nf6 {[%emt 0:00:04]} 5. Nc3 {[%emt 0:00:00]} g6 {[%emt 0:00:04]} 6. Be3 {[%emt 0:00:10]} Bg7 {[%emt 0:00:07]} 7. f3 {[%emt 0:00:17]} O-O {[%emt 0:00:17]} 8. Qd2 {[%emt 0:00:07]} Nc6 {[%emt 0:00:04]} 9. g4 {[%emt 0:00:29]} Nxd4 {[%emt 0:00:42]} 10. Bxd4 {[%emt 0:00:08]} Be6 {[%emt 0:00:05]} 11. Nd5 {[%emt 0:02:33]} Bxd5 {[%emt 0:05:54]} 12. exd5 {[%emt 0:00:07]} Qc7 {[%emt 0:00:39]} 13. h4 {[%emt 0:03:39]} Rac8 {[%emt 0:08:47]} 14. Rh2 {[%emt 0:05:06]} e6 {[%emt 0:10:35]} 15. dxe6 {[%emt 0:07:53]} fxe6 {[%emt 0:00:10]} 16. h5 {[%emt 0:02:06]} Nd5 {[%emt 0:10:49]} 17. hxg6 {[%emt 0:02:57]} hxg6 {[%emt 0:00:10]} 18. Bxg7 {[%emt 0:05:56]} Qxg7 {[%emt 0:00:17]} 19. O-O-O {[%emt 0:00:08]} Qf6 {[%emt 0:09:07]} 20. Bd3 {[%emt 0:08:56]} Qxf3 {[%emt 0:17:28]} 21. Rh8+ {[%emt 0:00:54]} Kf7 {[%emt 0:04:17]} 22. Rxf8+ {[%emt 0:00:58]} 1-0

[Event "Silver Lake Open-A 2018"]
[Site "Veliko Gradiste"]
[Date "2018.06.19"]
[Round "4"]
[White "Karthik, Kumar Pradeep"]
[Black "Djordjevic, Vuk"]
[Result "1-0"]
[ECO "A40"]
[WhiteElo "2281"]
[BlackElo "2399"]
[Annotator "ChessBase"]
[PlyCount "135"]
[EventDate "2018.06.17"]
[EventType "swiss"]
[EventCountry "SRB"]
[SourceTitle "playchess.com"]
[Source "ChessBase"]
[SourceQuality "1"]
[TimeControl "40/5400+30:900+30"]

1. d4 Nf6 2. c4 e6 3. g3 d5 4. Nf3 Bb4+ 5. Bd2 Bd6 6. Nc3 c6 7. Qc2 O-O 8. e4 {[%emt 0:04:23]} Be7 {[%emt 0:39:26]} 9. e5 {[%emt 0:07:15]} Nfd7 {[%emt 0:02:16]} 10. Bd3 {[%emt 0:09:05]} h6 {[%emt 0:02:57]} 11. h4 {[%emt 0:03:18]} f5 {[%emt 0:07:29]} 12. exf6 {[%emt 0:00:43]} Rxf6 {[%emt 0:01:47]} 13. Bf4 {[%emt 0:06:22]} Nf8 {[%emt 0:05:32]} 14. O-O-O {[%emt 0:10:25]} Bd6 {[%emt 0:05:08]} 15. Ne2 {[%emt 0:09:21]} b6 {[%emt 0:03:42]} 16. Ne5 {[%emt 0:01:49]} Qc7 {[%emt 0:06:18]} 17. Ng4 {[%emt 0:05:08]} Bxf4+ {[%emt 0:09:47]} 18. Nxf4 {[%emt 0:00:02]} Rxf4 {[%emt 0:00:35]} 19. gxf4 {[%emt 0:00:01]} Qxf4+ {[%emt 0:00:06]} 20. Ne3 {[%emt 0:00:18]} e5 {[%emt 0:05:00]} 21. Kb1 {[%emt 0:08:26]} exd4 {[%emt 0:02:53]} 22. Nf5 {[%emt 0:00:39]} Bxf5 {[%emt 0:00:46]} 23. Bxf5 {[%emt 0:00:02]} Na6 {[%emt 0:02:02]} 24. cxd5 {[%emt 0:03:08]} cxd5 {[%emt 0:00:23]} 25. a3 {[%emt 0:05:12]} Nc5 {[%emt 0:00:56]} 26. Rhg1 {[%emt 0:02:32]} d3 {[%emt 0:01:44]} 27. Bxd3 {[%emt 0:00:07]} Nce6 {[%emt 0:02:12]} 28. Qe2 {[%emt 0:06:44]} Rd8 {[%emt 0:01:25]} 29. Rg4 {[%emt 0:00:55]} Qf6 {[%emt 0:01:13]} 30. Rdg1 {[%emt 0:00:23]} Re8 {[%emt 0:00:35]} 31. Qe3 {[%emt 0:01:28]} Re7 {[%emt 0:00:29]} 32. Bc2 {[%emt 0:03:51]} Kh8 {[%emt 0:01:16]} 33. Qg3 {[%emt 0:01:58]} Rf7 {[%emt 0:00:19]} 34. Bg6 {[%emt 0:04:51]} Re7 {[%emt 0:00:38]} 35. Qd3 {[%emt 0:00:52]} Nf4 {[%emt 0:00:32]} 36. Qf5 {[%emt 0:01:49]} N4xg6 {[%emt 0:00:16]} 37. Qxf6 {[%emt 0:00:30]} gxf6 {[%emt 0:00:05]} 38. h5 {[%emt 0:00:21]} f5 {[%emt 0:00:57]} 39. R4g3 {[%emt 0:00:26]} Re6 {[%emt 0:00:36]} 40. hxg6 {[%emt 0:00:00]} Kg7 {[%emt 0:00:04]} 41. Rd1 {[%emt 0:00:35]} Rd6 {[%emt 0:01:54]} 42. Rgd3 {[%emt 0:01:06]} Kxg6 {[%emt 0:01:58]} 43. Rxd5 {[%emt 0:00:29]} Rf6 {[%emt 0:07:18]} 44. Rg1+ {[%emt 0:00:46]} Kf7 {[%emt 0:00:53]} 45. Kc2 {[%emt 0:00:36]} Rc6+ {[%emt 0:00:46]} 46. Kd2 {[%emt 0:01:36]} Kf6 {[%emt 0:00:17]} 47. Rh1 {[%emt 0:02:33]} Kg5 {[%emt 0:00:20]} 48. Rd3 {[%emt 0:02:22]} Nh7 {[%emt 0:03:34]} 49. Rg3+ {[%emt 0:01:33]} Kf4 {[%emt 0:00:02]} 50. Rh4+ {[%emt 0:00:34]} Ke5 {[%emt 0:00:00]} 51. Re3+ {[%emt 0:01:04]} Kd5 {[%emt 0:00:03]} 52. Rd3+ {[%emt 0:00:55]} Ke5 {[%emt 0:00:18]} 53. Re3+ {[%emt 0:08:46]} Kd5 {[%emt 0:00:01]} 54. Rf4 {[%emt 0:01:14]} Rf6 {[%emt 0:00:32]} 55. Kd3 {[%emt 0:00:44]} Ng5 {[%emt 0:01:22]} 56. Rd4+ {[%emt 0:00:55]} Kc6 {[%emt 0:00:22]} 57. Re7 {[%emt 0:00:19]} a6 {[%emt 0:01:48]} 58. Rc4+ {[%emt 0:00:34]} Kd6 {[%emt 0:00:46]} 59. Rb7 {[%emt 0:00:29]} Ne6 {[%emt 0:01:06]} 60. Rxb6+ {[%emt 0:00:10]} Ke5 {[%emt 0:00:25]} 61. Kc3 {[%emt 0:01:16]} h5 {[%emt 0:00:40]} 62. Rxa6 {[%emt 0:00:02]} Rh6 {[%emt 0:00:21]} 63. Rcc6 {[%emt 0:02:07]} h4 {[%emt 0:00:23]} 64. f4+ {[%emt 0:00:05]} Kxf4 {[%emt 0:00:26]} 65. Rxe6 {[%emt 0:00:06]} Rxe6 {[%emt 0:00:27]} 66. Rxe6 {[%emt 0:00:02]} h3 {[%emt 0:00:04]} 67. Rh6 {[%emt 0:00:14]} Kg3 {[%emt 0:00:20]} 68. Kd3 {[%emt 0:00:19]} 1-0

[Event "Silver Lake Open-A 2018"]
[Site "Veliko Gradiste"]
[Date "2018.06.20"]
[Round "5"]
[White "Atakisi, Umut"]
[Black "Kanakaris, Georgios"]
[Result "1/2-1/2"]
[ECO "B52"]
[WhiteElo "2380"]
[BlackElo "2399"]
[Annotator "NA"]
[PlyCount "28"]
[EventDate "2018.06.17"]
[EventType "swiss"]
[EventCountry "SRB"]
[SourceTitle "playchess.com"]
[Source "ChessBase"]
[SourceQuality "1"]
[TimeControl "40/5400+30:900+30"]

1. e4 {[%emt 0:03:59]} c5 {[%emt 0:00:11]} 2. Nf3 {[%emt 0:00:07]} d6 {[%emt 0:00:09]} 3. Bb5+ {[%emt 0:00:04]} Bd7 {[%emt 0:00:10]} 4. Bxd7+ {[%emt 0:00:05]} Qxd7 {[%emt 0:00:07]} 5. c4 {[%emt 0:00:04]} g6 {[%emt 0:00:16]} 6. d4 {[%emt 0:00:36]} Bg7 {[%emt 0:00:33]} 7. Nc3 {[%emt 0:01:11]} Nf6 {[%emt 0:01:19]} 8. d5 {[%emt 0:04:48]} O-O {[%emt 0:07:51]} 9. O-O {[%emt 0:02:47]} b5 {[%emt 0:04:01]} 10. cxb5 {[%emt 0:02:02]} a6 {[%emt 0:00:05]} 11. e5 {[%emt 0:10:42]} dxe5 {[%emt 0:00:38]} 12. Nxe5 {[%emt 0:00:46]} Qb7 {[%emt 0:01:51]} 13. bxa6 {[%emt 0:11:08]} Nxa6 {[%emt 0:07:00]} 14. Re1 {[%emt 0:28:12]} Nb4 {[%emt 0:05:10]} 1/2-1/2

[Event "Silver Lake Open-A 2018"]
[Site "Veliko Gradiste"]
[Date "2018.06.20"]
[Round "5"]
[White "Nestorovic, Dejan"]
[Black "Dinev, Dejan"]
[Result "1/2-1/2"]
[ECO "D31"]
[WhiteElo "2359"]
[BlackElo "2285"]
[Annotator "NA"]
[PlyCount "43"]
[EventDate "2018.06.17"]
[EventType "swiss"]
[EventCountry "SRB"]
[SourceTitle "playchess.com"]
[Source "ChessBase"]
[SourceQuality "1"]
[TimeControl "40/5400+30:900+30"]

1. d4 {[%emt 0:00:00]} d5 {[%emt 0:00:09]} 2. c4 {[%emt 0:00:00]} e6 {[%emt 0:00:29]} 3. Nc3 {[%emt 0:00:00]} Be7 {[%emt 0:01:01]} 4. cxd5 {[%emt 0:00:32]} exd5 {[%emt 0:00:08]} 5. Bf4 {[%emt 0:00:38]} Nf6 {[%emt 0:03:19]} 6. e3 {[%emt 0:00:24]} O-O {[%emt 0:00:55]} 7. Bd3 {[%emt 0:01:04]} c5 {[%emt 0:01:45]} 8. dxc5 {[%emt 0:05:44]} Bxc5 {[%emt 0:00:11]} 9. Nf3 {[%emt 0:00:08]} Nc6 {[%emt 0:00:46]} 10. O-O {[%emt 0:06:54]} d4 {[%emt 0:09:28]} 11. exd4 {[%emt 0:08:30]} Nxd4 {[%emt 0:00:08]} 12. Nxd4 {[%emt 0:00:06]} Bxd4 {[%emt 0:00:12]} 13. Nb5 {[%emt 0:02:10]} Bb6 {[%emt 0:04:19]} 14. Qf3 {[%emt 0:22:15]} Qd5 {[%emt 0:19:35]} 15. Qxd5 {[%emt 0:00:59]} Nxd5 {[%emt 0:00:07]} 16. Bd6 {[%emt 0:00:42]} Rd8 {[%emt 0:02:33]} 17. Be4 {[%emt 0:08:51]} a6 {[%emt 0:09:51]} 18. Rfd1 {[%emt 0:04:40]} axb5 {[%emt 0:03:37]} 19. Rxd5 {[%emt 0:00:05]} Be6 {[%emt 0:01:03]} 20. Rd2 {[%emt 0:01:36]} Rxa2 {[%emt 0:08:27]} 21. Rxa2 {[%emt 0:02:21]} Bxa2 {[%emt 0:00:11]} 22. Bxb7 {[%emt 0:01:45]} 1/2-1/2

[Event "Silver Lake Open-A 2018"]
[Site "Veliko Gradiste"]
[Date "2018.06.20"]
[Round "5"]
[White "Cerovic, Danilo"]
[Black "Tosic, Miroslav"]
[Result "*"]
[ECO "D47"]
[WhiteElo "2292"]
[BlackElo "2384"]
[Annotator "RC"]
[PlyCount "81"]
[EventDate "2018.06.17"]
[EventType "swiss"]
[EventCountry "SRB"]
[SourceTitle "playchess.com"]
[Source "ChessBase"]
[SourceQuality "1"]
[TimeControl "40/5400+30:900+30"]

1. d4 {[%emt 0:00:00]} d5 {[%emt 0:00:31]} 2. c4 {[%emt 0:00:00]} c6 {[%emt 0:00:10]} 3. Nf3 {[%emt 0:00:00]} Nf6 {[%emt 0:00:12]} 4. Nc3 {[%emt 0:00:01]} e6 {[%emt 0:00:07]} 5. e3 {[%emt 0:00:09]} Nbd7 {[%emt 0:00:11]} 6. Bd3 {[%emt 0:00:10]} dxc4 {[%emt 0:00:27]} 7. Bxc4 {[%emt 0:00:10]} b5 {[%emt 0:00:26]} 8. Bd3 {[%emt 0:06:43]} Bb7 {[%emt 0:02:14]} 9. e4 {[%emt 0:03:51]} b4 {[%emt 0:05:51]} 10. Na4 {[%emt 0:01:06]} Be7 {[%emt 0:01:32]} 11. O-O {[%emt 0:04:43]} h6 {[%emt 0:03:11]} 12. Qe2 {[%emt 0:15:14]} c5 {[%emt 0:11:28]} 13. e5 {[%emt 0:06:49]} Nd5 {[%emt 0:00:40]} 14. Nxc5 {[%emt 0:00:16]} Nxc5 {[%emt 0:01:41]} 15. dxc5 {[%emt 0:00:10]} Bxc5 {[%emt 0:00:07]} 16. Bd2 {[%emt 0:19:50]} Qb6 {[%emt 0:03:13]} 17. Rac1 {[%emt 0:02:46]} Rc8 {[%emt 0:02:55]} 18. Rc4 {[%emt 0:02:46]} Rc7 {[%emt 0:01:06]} 19. Rg4 {[%emt 0:07:04]} g6 {[%emt 0:21:16]} 20. Rh4 {[%emt 0:00:31]} h5 {[%emt 0:00:14]} 21. Rc1 {[%emt 0:02:17]} Be7 {[%emt 0:05:35]} 22. Rhc4 {[%emt 0:06:36]} Rxc4 {[%emt 0:01:10]} 23. Rxc4 {[%emt 0:02:16]} Bc5 {[%emt 0:02:57]} 24. Rc1 {[%emt 0:06:12]} Bd4 {[%emt 0:07:22]} 25. Nxd4 {[%emt 0:02:51]} Qxd4 {[%emt 0:00:08]} 26. Bb5+ {[%emt 0:00:16]} Kf8 {[%emt 0:00:31]} 27. Be3 {[%emt 0:08:36]} Qh4 {[%emt 0:01:41]} 28. Rc4 {[%emt 0:01:29]} Qd8 {[%emt 0:01:02]} 29. Bc5+ {[%emt 0:01:01]} Kg7 {[%emt 0:00:19]} 30. Bd6 {[%emt 0:00:32]} Qa5 {[%emt 0:01:09]} 31. Rd4 {[%emt 0:00:34]} Qxa2 {[%emt 0:01:46]} 32. h4 {[%emt 0:00:07]} Rc8 {[%emt 0:00:20]} 33. Bc4 {[%emt 0:00:32]} Qb1+ {[%emt 0:07:42]} 34. Kh2 {[%emt 0:00:07]} Qf5 {[%emt 0:02:06]} 35. g3 {[%emt 0:00:08]} Rxc4 {[%emt 0:00:35]} 36. Rxc4 {[%emt 0:00:22]} Ba6 {[%emt 0:00:16]} 37. b3 {[%emt 0:00:54]} Bxc4 {[%emt 0:00:53]} 38. bxc4 {[%emt 0:00:02]} Nc3 {[%emt 0:00:21]} 39. Qe3 {[%emt 0:00:34]} Nd1 {[%emt 0:01:05]} 40. Qxa7 {[%emt 0:00:00]} Nxf2 {[%emt 0:00:23]} 41. Be7 *

[Event "Silver Lake Open-A 2018"]
[Site "Veliko Gradiste"]
[Date "2018.06.20"]
[Round "5"]
[White "Mitev, Valentin"]
[Black "Savicevic, Vlatko"]
[Result "1/2-1/2"]
[ECO "D30"]
[WhiteElo "2086"]
[BlackElo "2354"]
[Annotator "NA"]
[PlyCount "56"]
[EventDate "2018.06.17"]
[EventType "swiss"]
[EventCountry "SRB"]
[SourceTitle "playchess.com"]
[Source "ChessBase"]
[SourceQuality "1"]
[TimeControl "40/5400+30:900+30"]

1. d4 {[%emt 0:00:00]} d5 {[%emt 0:02:32]} 2. c4 {[%emt 0:00:00]} e6 {[%emt 0:00:20]} 3. Nf3 {[%emt 0:00:11]} c6 {[%emt 0:00:08]} 4. Qc2 {[%emt 0:01:48]} dxc4 {[%emt 0:00:18]} 5. Qxc4 {[%emt 0:00:10]} b5 {[%emt 0:00:08]} 6. Qc2 {[%emt 0:00:34]} Bb7 {[%emt 0:00:55]} 7. Bg5 {[%emt 0:01:29]} Nf6 {[%emt 0:01:26]} 8. Nbd2 {[%emt 0:05:26]} h6 {[%emt 0:03:09]} 9. Bxf6 {[%emt 0:01:54]} Qxf6 {[%emt 0:00:31]} 10. e3 {[%emt 0:01:15]} Nd7 {[%emt 0:01:09]} 11. Bd3 {[%emt 0:01:56]} Qd8 {[%emt 0:00:18]} 12. O-O {[%emt 0:01:36]} Be7 {[%emt 0:00:06]} 13. Nb3 {[%emt 0:02:53]} O-O {[%emt 0:03:46]} 14. Rfd1 {[%emt 0:02:55]} Qb6 {[%emt 0:03:34]} 15. Rac1 {[%emt 0:01:22]} a5 {[%emt 0:02:39]} 16. Nfd2 {[%emt 0:25:42]} a4 {[%emt 0:03:08]} 17. Nc5 {[%emt 0:00:06]} Nxc5 {[%emt 0:00:29]} 18. dxc5 {[%emt 0:00:06]} Qc7 {[%emt 0:00:15]} 19. b4 {[%emt 0:06:05]} Rfd8 {[%emt 0:10:41]} 20. f4 {[%emt 0:03:51]} Bc8 {[%emt 0:06:13]} 21. Nf3 {[%emt 0:03:15]} Bd7 {[%emt 0:01:09]} 22. Ne5 {[%emt 0:06:43]} Be8 {[%emt 0:00:10]} 23. Be2 {[%emt 0:00:29]} Rxd1+ {[%emt 0:03:56]} 24. Rxd1 {[%emt 0:00:07]} Rd8 {[%emt 0:00:27]} 25. Rxd8 {[%emt 0:02:28]} Bxd8 {[%emt 0:00:38]} 26. Qe4 {[%emt 0:01:23]} Bf6 {[%emt 0:01:31]} 27. Qd4 {[%emt 0:06:38]} Bxe5 {[%emt 0:03:19]} 28. fxe5 {[%emt 0:00:32]} Qe7 {[%emt 0:08:35]} 1/2-1/2

[Event "Silver Lake Open-A 2018"]
[Site "Veliko Gradiste"]
[Date "2018.06.21"]
[Round "6"]
[White "Karavade, Eesha"]
[Black "Mastrapovic, Vladimir"]
[Result "1-0"]
[ECO "B30"]
[WhiteElo "2399"]
[BlackElo "2237"]
[Annotator "NA"]
[PlyCount "63"]
[EventDate "2018.06.21"]
[EventType "swiss"]
[EventCountry "SRB"]
[SourceTitle "playchess.com"]
[Source "ChessBase"]
[SourceQuality "1"]
[TimeControl "40/5400+30:900+30"]

1. e4 {[%emt 0:00:00]} c5 {[%emt 0:00:07]} 2. Nf3 {[%emt 0:00:00]} Nc6 {[%emt 0:00:08]} 3. Bb5 {[%emt 0:00:18]} e6 {[%emt 0:03:12]} 4. Bxc6 {[%emt 0:01:05]} bxc6 {[%emt 0:00:08]} 5. b3 {[%emt 0:00:07]} f6 {[%emt 0:03:42]} 6. O-O {[%emt 0:00:39]} d6 {[%emt 0:00:46]} 7. c3 {[%emt 0:03:17]} Ne7 {[%emt 0:03:34]} 8. d4 {[%emt 0:00:27]} cxd4 {[%emt 0:00:06]} 9. cxd4 {[%emt 0:00:06]} Ng6 {[%emt 0:00:28]} 10. Nc3 {[%emt 0:02:40]} Be7 {[%emt 0:01:13]} 11. Be3 {[%emt 0:08:58]} O-O {[%emt 0:03:54]} 12. Qe2 {[%emt 0:05:06]} Qa5 {[%emt 0:06:03]} 13. Rfc1 {[%emt 0:01:14]} Ba6 {[%emt 0:01:25]} 14. Qd2 {[%emt 0:03:42]} f5 {[%emt 0:06:50]} 15. Bg5 {[%emt 0:08:50]} Rae8 {[%emt 0:06:31]} 16. Bxe7 {[%emt 0:00:56]} Nxe7 {[%emt 0:00:23]} 17. e5 {[%emt 0:02:37]} Ng6 {[%emt 0:01:40]} 18. exd6 {[%emt 0:02:23]} Qd8 {[%emt 0:00:12]} 19. Na4 {[%emt 0:07:07]} Qxd6 {[%emt 0:00:57]} 20. Nc5 {[%emt 0:00:10]} Bc8 {[%emt 0:00:12]} 21. Nd3 {[%emt 0:00:15]} Rd8 {[%emt 0:00:57]} 22. Qe3 {[%emt 0:05:06]} Rf6 {[%emt 0:04:06]} 23. Rc5 {[%emt 0:05:10]} Bd7 {[%emt 0:08:27]} 24. Nde5 {[%emt 0:01:11]} Be8 {[%emt 0:00:03]} 25. Nxg6 {[%emt 0:06:36]} Rxg6 {[%emt 0:03:20]} 26. h3 {[%emt 0:00:09]} Rf6 {[%emt 0:04:15]} 27. Rac1 {[%emt 0:00:41]} h6 {[%emt 0:00:28]} 28. R1c4 {[%emt 0:01:33]} Rf7 {[%emt 0:01:03]} 29. Ne5 {[%emt 0:01:12]} Rc7 {[%emt 0:00:30]} 30. Qc3 {[%emt 0:05:46]} g5 {[%emt 0:01:09]} 31. Nxc6 {[%emt 0:01:35]} g4 {[%emt 0:01:41]} 32. Nxd8 {[%emt 0:00:16]} 1-0

[Event "Silver Lake Open-A 2018"]
[Site "Veliko Gradiste"]
[Date "2018.06.21"]
[Round "6"]
[White "Low, Zhen Yu Cyrus"]
[Black "Pogan, Nikolas"]
[Result "1-0"]
[ECO "B12"]
[WhiteElo "2387"]
[BlackElo "2260"]
[Annotator "ChessBase"]
[PlyCount "99"]
[EventDate "2018.06.21"]
[EventType "swiss"]
[EventCountry "SRB"]
[SourceTitle "playchess.com"]
[Source "ChessBase"]
[SourceQuality "1"]
[TimeControl "40/5400+30:900+30"]

1. e4 {[%emt 0:00:00]} c6 {[%emt 0:00:01]} 2. d4 {[%emt 0:00:00]} d5 {[%emt 0:00:02]} 3. f3 {[%emt 0:00:00]} e6 {[%emt 0:00:03]} 4. Nc3 {[%emt 0:00:00]} Bb4 {[%emt 0:00:03]} 5. Bf4 {[%emt 0:00:00]} Ne7 {[%emt 0:00:05]} 6. Qd3 {[%emt 0:00:07]} b6 {[%emt 0:00:54]} 7. Nge2 {[%emt 0:00:07]} Ba6 {[%emt 0:00:04]} 8. Qe3 {[%emt 0:00:06]} Nd7 {[%emt 0:00:59]} 9. O-O-O {[%emt 0:00:31]} O-O {[%emt 0:00:06]} 10. h4 {[%emt 0:02:03]} Re8 {[%emt 0:00:56]} 11. h5 {[%emt 0:03:51]} c5 {[%emt 0:00:10]} 12. h6 {[%emt 0:07:25]} g6 {[%emt 0:04:54]} 13. dxc5 {[%emt 0:06:38]} bxc5 {[%emt 0:27:35]} 14. a3 {[%emt 0:17:50]} Ba5 {[%emt 0:06:55]} 15. Bd6 {[%emt 0:02:53]} Nc6 {[%emt 0:11:38]} 16. exd5 {[%emt 0:12:16]} exd5 {[%emt 0:00:15]} 17. Qf2 {[%emt 0:00:06]} d4 {[%emt 0:00:15]} 18. Ne4 {[%emt 0:00:52]} Nf6 {[%emt 0:00:25]} 19. Bxc5 {[%emt 0:18:15]} Nxe4 {[%emt 0:04:17]} 20. fxe4 {[%emt 0:00:02]} Qg5+ {[%emt 0:03:32]} 21. Nf4 {[%emt 0:06:57]} Rxe4 {[%emt 0:07:16]} 22. Bd6 {[%emt 0:08:20]} Bb7 {[%emt 0:07:43]} 23. Kb1 {[%emt 0:05:17]} Qf6 {[%emt 0:12:23]} 24. Bd3 {[%emt 0:00:10]} Re6 {[%emt 0:02:30]} 25. Bc5 {[%emt 0:00:52]} Ne5 {[%emt 0:03:29]} 26. Bxd4 {[%emt 0:01:15]} Nxd3 {[%emt 0:02:08]} 27. Rxd3 {[%emt 0:00:37]} Qf5 {[%emt 0:00:43]} 28. Nxe6 {[%emt 0:00:17]} fxe6 {[%emt 0:01:09]} 29. Qxf5 {[%emt 0:04:32]} exf5 {[%emt 0:00:01]} 30. Rg1 {[%emt 0:00:41]} Be4 {[%emt 0:00:15]} 31. Re3 {[%emt 0:00:00]} Bd2 {[%emt 0:00:10]} 32. Rh3 {[%emt 0:01:01]} a5 {[%emt 0:00:53]} 33. Bc3 {[%emt 0:00:40]} Bf4 {[%emt 0:00:27]} 34. g3 {[%emt 0:00:16]} Be3 {[%emt 0:00:32]} 35. Rd1 {[%emt 0:00:09]} Ra7 {[%emt 0:01:56]} 36. Rd8+ {[%emt 0:01:13]} Kf7 {[%emt 0:00:01]} 37. Rh8 {[%emt 0:01:04]} Ke6 {[%emt 0:00:14]} 38. Re8+ {[%emt 0:00:56]} Kf7 {[%emt 0:01:37]} 39. Rh8 {[%emt 0:00:52]} Ke6 {[%emt 0:00:04]} 40. Rh2 {[%emt 0:00:00]} a4 {[%emt 0:01:13]} 41. Bg7 {[%emt 0:01:23]} Rd7 {[%emt 0:08:17]} 42. Rxh7 {[%emt 0:00:39]} Rd1+ {[%emt 0:02:28]} 43. Ka2 {[%emt 0:00:12]} f4 {[%emt 0:03:54]} 44. gxf4 {[%emt 0:00:18]} g5 {[%emt 0:00:15]} 45. Rh8 {[%emt 0:00:55]} Bd5+ {[%emt 0:02:06]} 46. b3 {[%emt 0:00:09]} Bxf4 {[%emt 0:00:04]} 47. Re8+ {[%emt 0:01:16]} Kd7 {[%emt 0:00:41]} 48. h7 {[%emt 0:00:06]} axb3+ {[%emt 0:00:56]} 49. cxb3 {[%emt 0:00:02]} Bxh2 {[%emt 0:00:44]} 50. h8=Q {[%emt 0:00:08]} 1-0

[Event "Silver Lake Open-A 2018"]
[Site "Veliko Gradiste"]
[Date "2018.06.21"]
[Round "6"]
[White "Savicevic, Vlatko"]
[Black "Cholleti, Sahajasri"]
[Result "1-0"]
[ECO "B96"]
[WhiteElo "2354"]
[BlackElo "2151"]
[Annotator "NA"]
[PlyCount "48"]
[EventDate "2018.06.21"]
[EventType "swiss"]
[EventCountry "SRB"]
[SourceTitle "playchess.com"]
[Source "ChessBase"]
[SourceQuality "1"]
[TimeControl "40/5400+30:900+30"]

1. e4 {[%emt 0:00:00]} c5 {[%emt 0:00:32]} 2. Nf3 {[%emt 0:00:06]} d6 {[%emt 0:00:06]} 3. Nc3 {[%emt 0:01:29]} Nf6 {[%emt 0:00:15]} 4. d4 {[%emt 0:00:46]} cxd4 {[%emt 0:00:08]} 5. Nxd4 {[%emt 0:00:07]} a6 {[%emt 0:00:04]} 6. Bg5 {[%emt 0:01:33]} e6 {[%emt 0:00:08]} 7. f4 {[%emt 0:00:34]} h6 {[%emt 0:00:08]} 8. Bh4 {[%emt 0:00:36]} Qb6 {[%emt 0:00:06]} 9. a3 {[%emt 0:05:51]} Be7 {[%emt 0:03:36]} 10. Bf2 {[%emt 0:02:58]} Qc7 {[%emt 0:00:10]} 11. Qf3 {[%emt 0:05:03]} b5 {[%emt 0:01:10]} 12. Bd3 {[%emt 0:13:20]} Bb7 {[%emt 0:02:53]} 13. O-O-O {[%emt 0:01:28]} Nc6 {[%emt 0:03:29]} 14. Rhe1 {[%emt 0:13:08]} Rc8 {[%emt 0:05:16]} 15. Nxc6 {[%emt 0:08:57]} Bxc6 {[%emt 0:04:35]} 16. Bd4 {[%emt 0:16:34]} Qb7 {[%emt 0:06:49]} 17. Qe2 {[%emt 0:00:41]} Ra8 {[%emt 0:21:36]} 18. e5 {[%emt 0:13:47]} dxe5 {[%emt 0:04:37]} 19. Bxe5 {[%emt 0:01:26]} Bxg2 {[%emt 0:10:37]} 20. Bxf6 {[%emt 0:02:37]} gxf6 {[%emt 0:04:25]} 21. Ne4 {[%emt 0:00:29]} Bh3 {[%emt 0:00:15]} 22. Qh5 {[%emt 0:02:06]} Bf5 {[%emt 0:07:24]} 23. Qxf5 {[%emt 0:00:25]} Qb8 {[%emt 0:00:07]} 24. Nxf6+ {[%emt 0:00:17]} Kf8 1-0